Cogmind - Beta 17 @@@ ROGUE MODE // 2026.07.27 @ 01:28:49 Player: TheSkyeDoctor Result: Destroyed by D-53 Grenadier with Mini Grenade Launcher Performance ------------- Evolutions (0) 0 Regions Visited (2) 400 Robots Destroyed (9) 45 Value Destroyed (190) 190 Prototype IDs (0) 0 Alien Tech Used (0) 0 Bonus (0) 0 TOTAL SCORE: 635 Bonus ------- None Cogmind --------- Core Integrity 0/250 Matter 280/300 Energy 97/100 System Corruption 0% Temperature Cool (0) Movement Rolling (110) Ox2 Location -10/Mines Parts ------- > --- POWER (1) -------- (None) > --- PROPULSION (2) --- Wheel > --- UTILITY (2) ------ Large Storage Unit Light Armor Plating > --- WEAPON (2) ------- (None) > --- INVENTORY (15) --- Light Ion Engine High-capacity Matter Pod (200) High-capacity Matter Pod (200) Improved Terrain Scanner Seismic Detector Targeting Computer Beam Rifle Grenade Launcher Peak State ------------ > --- POWER ------------ Ion Engine > --- PROPULSION ------- Light Treads Light Treads > --- UTILITY ---------- Large Storage Unit Seismic Detector > --- WEAPON ----------- EM Pulse Gun Assault Rifle > --- INVENTORY -------- Light Ion Engine Wheel Improved Terrain Scanner Targeting Computer Light Armor Plating Beam Rifle Grenade Launcher [Rating: 8] Favorites ----------- Power Ion Engine Engine Ion Engine Propulsion Light Treads Treads Light Treads Wheel Wheel Utility Seismic Detector Device Seismic Detector Storage Large Storage Unit Protection Light Armor Plating Weapon EM Pulse Gun Energy Gun EM Pulse Gun Ballistic Gun Assault Rifle Build | -11 -10 -10 ------- Run | Yrd Mat Min Slots Evolved . | . . . Power . | . . . Propulsion . | . . . Utility . | . . . Weapon . | . . . Parts Attached 12 | 8 1 3 Power 2 | 2 . . Engine 2 | 2 . . Core . | . . . Reactor . | . . . Propulsion 4 | 2 . 2 Treads 3 | 2 . 1 Leg . | . . . Wheel 1 | . . 1 Hover . | . . . Flight . | . . . Utility 4 | 2 1 1 Device 1 | 1 . . Storage 2 | 1 1 . Processor . | . . . Hackware . | . . . Protection 1 | . . 1 Artifact . | . . . Weapon 2 | 2 . . Energy Gun 1 | 1 . . Energy Cannon . | . . . Ballistic Gun 1 | 1 . . Ballistic Cannon . | . . . Launcher . | . . . Special Weapon . | . . . Impact Weapon . | . . . Slashing Weapon . | . . . Piercing Weapon . | . . . Special Melee Weapon . | . . . Unidentified Prototypes . | . . . Parts Lost 6 | . . 6 Power 1 | . . 1 Propulsion 3 | . . 3 Utility . | . . . Weapon 2 | . . 2 Highest Loss Streak 6 | . . 6 To Critical Strikes . | . . . Average Backups 4 | 1 3 8 Power . | . 1 1 Propulsion 1 | . 1 1 Utility 1 | . 1 3 Weapon . | . . 1 Tool/Special . | . . . Unused Backups 6 | . . 6 Power . | . . . Propulsion . | . . . Utility 4 | . . 4 Weapon 2 | . . 2 Tool/Special . | . . . Average Slot Usage (%) 97 | . 100 95 Engine 13 | . 14 13 Treads 27 | . 28 26 Device 13 | . 14 13 Storage 14 | . 14 14 Energy Gun 13 | . 14 13 Ballistic Gun 13 | . 14 12 Peak Build Rating 8 | 7 7 8 Average Rating 6 | 5 7 7 On Entrance 4 | . 7 7 Avg Prop Armor Cover (%) . | . . . Naked Turns . | . . . Heaviest Build 30 | 15 30 30 Greatest Support 40 | 40 40 40 Greatest Overweight (x) 2 | . . 2 Average Overweight (x) . | . . . Largest Inventory Capacity 15 | 8 15 15 Average Capacity 11 | 7 10 15 Most Carried 10 | 3 5 10 Average Carried 4 | 1 3 8 Final Capacity 15 | 8 15 15 Final Carried 8 | 3 4 8 Class Distribution -------------------- 100% | Mutant Dominant Class ---------------- Mutant | -10/Materials Mutant | -10/Mines Resources | -11 -10 -10 ----------- Run | Yrd Mat Min Matter Collected 384 | 311 23 50 Remotely . | . . . Salvage Created 319 | 140 121 58 Parts 25 | 15 6 4 Haulers Intercepted . | . . . Recyclers Shooed 1 | 1 . . Parts Field Recycled . | . . . Retrieved Matter . | . . . Parts Self-Destructed . | . . . Prevented . | . . . Parts Restored . | . . . Kills | -11 -10 -10 ------- Run | Yrd Mat Min Combat Hostiles Destroyed 3 | . 2 1 Guns 3 | . 2 1 Classes Destroyed 6 | 3 2 1 Worker 1 | 1 . . Tunneler 3 | 3 . . Recycler 1 | 1 . . Watcher 1 | . 1 . Grunt 2 | . 2 . Sentry 1 | . . 1 Best Kill Streak 2 | 2 2 1 Combat Bots Only 2 | . 2 1 Max Kills in Single Turn 1 | 1 1 1 Gunslinging . | . . . Exploded . | . . . Melee . | . . . Uniques/NPCs Destroyed . | . . . Combat | -11 -10 -10 -------- Run | Yrd Mat Min Hostile Shots Fired 62 | . 34 28 Missed 13 | . 11 2 Hits 49 | . 23 26 Projectile 49 | . 23 26 AOE 17 | . . 17 Critical Strikes 2 | . . 2 Damage Taken 1011 | . 218 793 Core 252 | . 52 200 Absorbed by Shields . | . . . Core Remaining (%) 100 | 100 . . Volleys Fired 28 | 11 14 3 Largest 2 | 2 2 2 Hottest 60 | 60 60 60 Shots Fired 56 | 22 28 6 Gun 56 | 22 28 6 Cannon . | . . . Launcher . | . . . Special . | . . . Kinetic 28 | 11 14 3 Thermal . | . . . Explosive . | . . . Electromagnetic 28 | 11 14 3 Robot Hit Streak 8 | 4 8 5 Robot Miss Streak 6 | 4 6 3 Penetration Max . | . . . Secondary Targets . | . . . Shots Hit Robots 28 | 11 12 5 Core Hits 13 | 6 5 2 Critical Kills . | . . . Critical Parts Destroyed . | . . . Critical Strikes . | . . . Melee Attacks . | . . . Impact . | . . . Slashing . | . . . Piercing . | . . . Sneak Attacks . | . . . Combat Hostiles . | . . . Follow-up Attacks . | . . . Damage Inflicted 429 | 199 170 60 Guns 377 | 147 170 60 Cannons . | . . . Explosions 52 | 52 . . Melee . | . . . Ramming . | . . . Kinetic 165 | 67 60 38 Thermal 52 | 52 . . Explosive . | . . . Electromagnetic 212 | 80 110 22 Impact . | . . . Slashing . | . . . Piercing . | . . . Highest Corruption . | . . . Average Corruption . | . . . Corruption Purged . | . . . Corruption Blocked . | . . . Overload Shots . | . . . Overflow Damage . | . . . Projectiles . | . . . Explosions . | . . . Melee . | . . . Knockbacks . | . . . Impact . | . . . Kinetic . | . . . Secondary . | . . . Self-Inflicted Damage . | . . . Shots . | . . . Rammed . | . . . Targets Rammed . | . . . Kicked . | . . . Crushed . | . . . Highest Temperature 54 | . 33 54 Average Temperature 29 | . 22 41 Received Heat Transfer 129 | . 57 72 Siege Activations . | . . . Martial Activations . | . . . Shielding Activations . | . . . Robots Disrupted . | . . . Combat Hostiles . | . . . Robots Corrupted . | . . . Combat Hostiles . | . . . Parts Fried 1 | . 1 . Impact Corruptions . | . . . Robots Melted . | . . . Combat Hostiles . | . . . Parts Melted . | . . . Heat Transferred 50 | 50 . . Parts Sabotaged . | . . . Parts Stolen . | . . . Parts Stripped . | . . . Power Chain Reactions 1 | 1 . . Alert | -11 -10 -10 ------- Run | Yrd Mat Min Maximum Alert Level . | . . . Low Security (%) 100 | 100 100 100 Level 1 . | . . . Level 2 . | . . . Level 3 . | . . . Level 4 . | . . . Level 5 . | . . . High Security . | . . . Max Security . | . . . Peak Influence 51 | 5 51 20 Initial . | . . . Average 6 | . 17 1 Influence Increases 133 | 25 88 20 Destroy 0b10 Robot/C 60 | . 40 20 Destroy 0b10 Robot/NC 30 | 25 5 . Destroy Leader 12 | . 12 . Disable Machine 30 | . 30 . Destroy Structure 1 | . 1 . Influence Decreases 133 | 25 88 20 Time Decay 133 | 25 88 20 Squads Dispatched 1 | . 1 . Investigation . | . . . Extermination . | . . . Reinforcement 1 | . 1 . Assault . | . . . Garrison . | . . . Intercept . | . . . Searches Triggered . | . . . Construction Impeded . | . . . Haulers Reinforced . | . . . Active Scanning Responses . | . . . Cargo Convoy Interrupts . | . . . Stealth | -11 -10 -10 --------- Run | Yrd Mat Min Distress Signals . | . . . Communications Jammed . | . . . Distress Signals . | . . . Times Spotted 14 | . 10 4 Peak Tracking Total 4 | . 4 2 Tactical Retreats . | . . . Traps | -11 -10 -10 ------- Run | Yrd Mat Min Traps Triggered . | . . . Indirectly . | . . . Trap Hack Attempts . | . . . Triggered . | . . . Disarmed . | . . . Reprogrammed . | . . . Reused . | . . . Traps Extracted . | . . . Installed . | . . . Triggered . | . . . Machines | -11 -10 -10 ---------- Run | Yrd Mat Min Machines Disabled 3 | . 2 1 Max in Single Turn 1 | . 1 1 Machines Repaired . | . . . Machines Dismantled . | . . . Machines Sabotaged . | . . . Overloaded Fab Kills . | . . . Hacking | -11 -10 -10 --------- Run | Yrd Mat Min Machines Accessed . | . . . Terminals . | . . . Fabricators . | . . . Repair Stations . | . . . Recycling Units . | . . . Scanalyzers . | . . . Garrison Access . | . . . Total Hacks . | . . . Successful . | . . . Failed . | . . . Catastrophic . | . . . Database Lockouts . | . . . Manual . | . . . Terminals . | . . . Fabricators . | . . . Repair Stations . | . . . Recycling Units . | . . . Scanalyzers . | . . . Garrison Access . | . . . Terminal Hacks . | . . . Fabricator Hacks . | . . . Repair Station Hacks . | . . . Recycling Unit Hacks . | . . . Scanalyzer . | . . . Garrison Access Hacks . | . . . Unauthorized Hacks . | . . . Terminals . | . . . Fabricators . | . . . Repair Stations . | . . . Recycling Units . | . . . Scanalyzers . | . . . Garrison Access . | . . . Data Cores Recovered . | . . . Used . | . . . Hacking Detections . | . . . Full Trace Events . | . . . Feedback Events . | . . . Feedback Blocked . | . . . Robot Schematics Acquired . | . . . Robots Built . | . . . Authchips . | . . . Time . | . . . Total Robot Build Rating . | . . . Part Schematics Acquired . | . . . Parts Built . | . . . Authchips . | . . . Time . | . . . Total Part Build Rating . | . . . Part Studies Acquired . | . . . Parts Repaired . | . . . Time . | . . . Parts Recycled . | . . . Recycled Matter . | . . . Retrieved Matter . | . . . Retrieved Components . | . . . Parts Scanalyzed . | . . . Part Schematics Acquired . | . . . Parts Damaged . | . . . Bothacking | -11 -10 -10 ------------ Run | Yrd Mat Min Used RIF Installer . | . . . Robots Hacked . | . . . Non-combat . | . . . Combat . | . . . Robot Hacks Applied . | . . . Relay Couplers Released . | . . . Fabnet Peak Effective % . | . . . Robots Rewired . | . . . Allies Hacked . | . . . Hacks Repelled . | . . . Allies | -11 -10 -10 -------- Run | Yrd Mat Min Total Allies . | . . . Largest Group . | . . . Highest-Rated Group . | . . . Highest-Rated Ally . | . . . Total Orders . | . . . Ally Attacks . | . . . Total Damage . | . . . Kills . | . . . Allies Corrupted . | . . . Allies Melted . | . . . Intel | -11 -10 -10 ------- Run | Yrd Mat Min Active Infowar (turns) 611 | 110 235 266 Seismic 611 | 110 235 266 Robot Analysis Total . | . . . Derelict Logs Recovered . | . . . Drone Launches . | . . . Drone Recoveries . | . . . Exploration | -11 -10 -10 ------------- Run | Yrd Mat Min Turns Passed 752 | 236 235 281 Spaces Moved 388 | 122 112 154 Core 5 | 5 . . Treads 371 | 117 112 142 Legs . | . . . Wheels 12 | . . 12 Hover . | . . . Flight . | . . . Fastest Speed 50 | 50 160 110 Average Speed 157 | 155 160 156 Slowest Speed 160 | 160 160 160 Overloaded Moves . | . . . Propulsion Burnouts . | . . . Robots Hopped . | . . . Potential Cave-ins . | . . . Cave-ins Triggered . | . . . Exploration Rate (%) 20 | 4 31 27 Regions Visited 2 Branch Regions 1 Pre-discovered Areas . | . . . Known Exits Taken . | . . . Unknown Exits Taken 2 | 1 1 . Scrap Searched . | . . . Spaces Dug . | . . . Terrain Destroyed 6 | 6 . . Melee . | . . . Projectile . | . . . AOE 6 | 6 . . Terrain Rammed . | . . . Walls Destroyed . | . . . Machines Disabled . | . . . Actions | -11 -10 -10 --------- Run | Yrd Mat Min Total 470 | 142 140 188 Wait 34 | . 12 22 Move 386 | 121 111 154 Hop . | . . . Pick Up 8 | 2 1 5 Fast Attach 7 | 7 . . Attach 2 | . . 2 Detach . | . . . Swap 4 | 1 1 2 Drop 1 | . 1 . Fire 28 | 11 14 3 Melee . | . . . Ram . | . . . Kick . | . . . Crush . | . . . Escape Stasis . | . . . Rewire . | . . . Trap . | . . . Miscellaneous . | . . . Route ------- -11/Scrapyard -10/Materials -10/Mines History --------- Turn | Location | Event 7 | -11/Scrapyard | Discovered new exit (range 15) 237 | -11/Scrapyard | Entered Materials 314 | -10/Materials | Build established: Mutant 426 | -10/Materials | Discovered new exit (range 16) 472 | -10/Materials | Entered Mines 482 | -10/Mines | Joined a pair of Derelicts in attacking an 0b10 outpost 671 | -10/Mines | Assembled infested the area 736 | -10/Mines | Core integrity fell below 50% 749 | -10/Mines | Core integrity fell below 20% 753 | -10/Mines | Destroyed by D-53 Grenadier with Mini Grenade Launcher Last Messages --------------- 00733_ The unstable cave ceiling collapses. 00733_ U-05 Engineer lays Concrete. 00734_ The unstable cave ceiling collapses. 00734_ U-05 Engineer lays Concrete. 00736_ Ion Engine destroyed. 00736_ Lgt. Treads destroyed. 00736_ U-05 Engineer lays Concrete. 00737_ The unstable cave ceiling collapses. 00737_ U-05 Engineer lays Concrete. 00738_ Lgt. Treads destroyed. 00738_ D-53 Grenadier destroyed. 00738_ U-05 Engineer lays Concrete. 00743_ The unstable cave ceiling collapses. 00743_ U-05 Engineer lays Concrete. 00746_ Lgt. Treads destroyed. 00747_ The unstable cave ceiling collapses. 00747_ U-05 Engineer lays Concrete. 00748_ The unstable cave ceiling collapses. 00749_ U-05 Engineer lays Concrete. 00751_ U-05 Engineer builds a Wall. Map ----- +----------------------------------------------------+ | ?????????????????????????????????????????????????? | | ?????????????????????????????????????????????????? | | ?????????????????????????????????????????????????? | | ?????????????????????????????????????????????????? | | ?????????????????????????????????????????????????? | | ?????????????????????????????????????????????????? | | ?????????????????????????????????????????????????? | | ?????????????????????????????????????????????????? | | ?????????????????????????????????????????????????? | | ?????????????????????????????????????????????????? | | ?????????????????????????????????????????????????? | | ?????????????????????????????????????????????????? | | ?????????????????????????????????????????????????? | | ?????????????????????????????????????????????????? | | ?????????????????????????????????????????????????? | | ?????????????????????????????????????????????????? | | ?????????????????????????????????????????????????? | | ?????????????????????????????????????????????????? | | ?????????????????????????????????????????????????? | | ?????????????????????????????????????????????????? | | ?????????????????????????????????????????????????? | | ?????????????????????????????????????????????????? | | ?????????????????????????????????????????????????? | | ?????????????????????#???????????????????????????? | | ?????????????????????# ######????????????????????? | | ?????????????????????# @ ####?????????????????? | | ?????????????????????### #?????#???????????? | | ???????????????????????# ##### #???????????? | | ???????????????????????# #??????###### | | ???????????????????????# #####????##! ## | | ??????????????????????# # ##???#"!! # | | ??????????????????????# # #???#%![!+ | | ??????????????????????## ##???#[!%!+ | | ???????????????????????# ##???# ![ # | | ???????????????????????# d #???##! ## | | ????????????????????? # # ##????##### | | ???????????????????# # #???????## | | ???????????????????## u ##??????## | | ????????????? ??????# # ###???????# | | ??????????? ???? # ##????????# | | ???????? ?? #### #????????## | | ?????? ??#### ???# #?????????## | | ?????? =????## #???# ##??????????### | | ??????? ?????## ######## ##?????????????? | | ???????# ??????###?# ################# | | ???????# ???###????# !! ! | | ???????# ??? #????# !!!! ################# | | ???????# ???# #????# ! ! ###?????????????? | | ????????# ???# #????# !! #?????????????? | | ?????????# ##?# #????# #?????????????? | +----------------------------------------------------+ Best States ------------- Heat Dissipation 25 Energy Generation 10 Energy Capacity 250 Matter Stores 300 Matter Capacity 300 Sight Range 16 Terrain Scan Density 10 Armor Coverage 150 Evasion (%) 40 Recoil Reduction 2 Item Schematics ----------------- None Robot Schematics ------------------ None Fabricated ------------ Nothing Repaired ---------- Nothing Studied --------- None Alien Tech Used ----------------- None Achievements -------------- None Challenges ------------ None Game ------ Seed MetaDisposableStripper Manual? 0 Play Time 00:04:30 Cumulative 137.7 hours Start 2026.07.27 @ 01:25:36 End 2026.07.27 @ 01:28:49 Sessions 1 Manual Loads 0 Difficulty Rogue Special Mode None Game No. 284 Rogue 284 Adventurer 0 Explorer 0 Win Type - Total 1 Types 1/0/0/0/0/0/0/0/0/0 Lore% 55 Gallery% 55 Achievement% 43 Wizard Run 0 Options --------- Layout 2 ASCII 0 Keyboard 1 Movement Arrows Keybinds 0 Fullscreen 1 Font 24/Smallcaps Map View 50x44 Zoom Use 0% Tactical HUD 1 Map Filters NONE Filters NONE Steam 1 RUN: 67c2fd26-46bb-44ae-9e5f-92b8338900f3